[Event "Slovakia Open 2022"]
[Site "Bratislava"]
[Date "2022.09.30"]
[Round "2.2"]
[White "Stocek, Jiri"]
[Black "Bombek, Peter"]
[Result "1-0"]
[ECO "D55"]
[WhiteElo "2559"]
[BlackElo "2083"]
[Annotator "TA"]
[PlyCount "39"]
[EventDate "2022.09.30"]
[EventCountry "SVK"]
[SourceTitle "playchess.com"]
[Source "ChessBase"]
[SourceQuality "1"]
[TimeControl "2700+10"]

{[%evp 18,39,23,0,48,63,59,46,52,47,42,36,53,42,76,27,33,45,70,68,510,512,512,504]} 1. d4 {[%emt 0:00:09]} d5 {[%emt 0:00:01]} 2. Nf3 {[%emt 0:00:05]} Nf6 {[%emt 0:00:01]} 3. Bg5 {[%emt 0:00:03]} e6 {[%emt 0:00:07]} 4. e3 {[%emt 0:00:07]} Be7 {[%emt 0:00:13]} 5. c4 {[%emt 0:00:10]} O-O {[%emt 0:00:16]} 6. Nc3 {[%emt 0:00:11]} h6 {[%emt 0:00:04]} 7. Bxf6 {[%emt 0:00:19]} Bxf6 {[%emt 0:00:01]} 8. Rc1 {[%emt 0:00:38]} b6 {[%emt 0:01:17]} 9. cxd5 {[%emt 0:00:43]} exd5 {[%emt 0:00:02]} 10. b4 {[%emt 0:01:51] [#]} a5 $146 {[%emt 0:02:31] D55: Queen's Gambit Declined: 4 Bg5 Be7: Lines without ...h6 and 6...h6 7 Bxf6.} (10... Be7 $11 {is more appropriate.}) ({Predecessor:} 10... Be6 11. Be2 Be7 12. b5 c5 13. O-O Nd7 14. dxc5 Nxc5 15. Nd4 Qd7 16. Bf3 a6 17. Nc6 Bf6 18. Nxd5 Bxd5 19. Bxd5 axb5 {1-0 (39) Shimanov,A (2597)-Pruijssers,R (2561) Tornelo INT 2021}) 11. b5 $1 $14 {[%emt 0:00:51]} Be6 {[%emt 0:00:21]} 12. Be2 {[%emt 0:01:09]} c5 {[%emt 0:00:14] White is slightly better.} 13. bxc6 {[%emt 0:00:11]} Nxc6 {[%emt 0:00:13]} 14. O-O {[%emt 0:00:29]} Be7 {[%emt 0:02:37]} 15. Qa4 {[%emt 0:00:50]} Na7 {[%emt 0:02:14]} 16. Ba6 {[%emt 0:03:12]} ({White should try} 16. Ne5 $16) 16... Rb8 {[%emt 0:01:18][%cal Ob6b5] [#] And now ...b5! would win.} 17. Ne5 {[%emt 0:01:51]} Bb4 {[%emt 0:00:43] Hoping for ...Bxc3.} 18. Nb5 {[%emt 0:02:33] White has more active pieces. Pair of Knights!} Bd7 $2 {[%emt 0:01:37][%mdl 8192]} (18... Qe8 $14) 19. Nxd7 $18 {[%emt 0:00:17]} Qxd7 {[%emt 0:00:01]} 20. Rc7 {[%emt 0:00:09] Weighted Error Value: White=0.08 (flawless) /Black=0.88} 1-0

[Event "Slovakia Open 2022"]
[Site "Bratislava"]
[Date "2022.09.30"]
[Round "2.3"]
[White "Babula, Vlastimil"]
[Black "Laurusas, Tomas"]
[Result "1/2-1/2"]
[ECO "B81"]
[WhiteElo "2574"]
[BlackElo "2563"]
[Annotator "TA"]
[PlyCount "120"]
[EventDate "2022.09.30"]
[EventCountry "SVK"]
[SourceTitle "playchess.com"]
[Source "ChessBase"]
[SourceQuality "1"]
[TimeControl "2700+10"]

{[%evp 15,120,70,66,18,14,8,15,-28,-33,-43,-51,-38,-22,-29,6,7,45,15,24,8,9,31,16,24,6,30,33,0,38,-11,0,0,0,0,0,0,0,0,0,-12,-12,-14,-18,-16,-19,-16,0,0,0,0,0,0,0,0,0,0,8,0,743,41,64,73,50,0,569,0,0,0,0,0,0,0,181,171,168,0,55,0,0,0,0,0,0,0,0,0,0,0,0,0,0,0,0,0,0,0,0,0,0,0,0,0,0,0,0,0,0]} 1. e4 {[%emt 0:00:04]} c5 {[%emt 0:00:17]} 2. Nf3 {[%emt 0:00:04]} e6 {[%emt 0:00:01]} 3. d4 {[%emt 0:00:01]} cxd4 {[%emt 0:00:02]} 4. Nxd4 {[%emt 0:00:02]} Nf6 {[%emt 0:00:08]} 5. Nc3 {[%emt 0:00:05]} d6 {[%emt 0:00:01]} 6. g4 {[%emt 0:00:36][%cal Bg2g4,Bg4g5][%mdl 32]} a6 {[%emt 0:00:13]} 7. g5 {[%emt 0:00:20]} Nfd7 {[%emt 0:00:01]} 8. Be3 {[%emt 0:00:32]} b5 {[%emt 0:00:07][%cal Bb7b5,Bb5b4][%mdl 32]} 9. f3 {[%emt 0:02:56] White has more active pieces. B81: Sicilian Scheveningen: Keres Attack.} (9. a3 $14) 9... Bb7 $11 {[%emt 0:02:25]} 10. Qd2 {[%emt 0:00:18]} Nb6 {[%emt 0:00:16]} 11. Qf2 {[%emt 0:01:24][%cal Od4e6]} N8d7 {[%emt 0:00:04]} 12. Bd3 {[%emt 0:02:01]} Rc8 {[%emt 0:01:32]} 13. h4 {[%emt 0:01:05]} b4 {[%emt 0:08:17]} 14. Nce2 {[%emt 0:00:18] [#]} d5 $146 {[%emt 0:00:02]} ({Predecessor:} 14... Qc7 15. h5 d5 16. Rf1 Nc4 17. Bxc4 Qxc4 18. b3 Qc7 19. f4 dxe4 20. g6 hxg6 21. hxg6 {0-1 (38) Skinke,K (2117)-Aliaga Fernandez,I (2033) Batumi 2006}) 15. O-O-O {[%emt 0:02:40][%cal Og5g6]} e5 {[%emt 0:00:10]} 16. Nf5 {[%emt 0:00:03]} (16. Nb3 $5 {[%cal Rb3a5]}) 16... g6 {[%emt 0:00:26]} 17. Nh6 {[%emt 0:02:24]} d4 $132 {[%emt 0:00:21][%mdl 2048] [#] Black is not keeping still} 18. Nxd4 {[%emt 0:03:00]} Bxh6 {[%emt 0:03:17]} 19. gxh6 {[%emt 0:03:31]} exd4 {[%emt 0:00:02]} 20. Bxd4 {[%emt 0:00:02]} O-O {[%emt 0:00:08]} 21. h5 {[%emt 0:01:43]} Qc7 {[%emt 0:06:39]} 22. Rdg1 {[%emt 0:01:17]} (22. b3 $14) 22... Nc5 {[%emt 0:02:40]} 23. Kb1 {[%emt 0:02:33]} Nxd3 {[%emt 0:08:58]} 24. cxd3 {[%emt 0:00:03]} Nd7 {[%emt 0:00:01]} 25. f4 {[%emt 0:06:29][%cal Bf3f4,Bf4f5][%mdl 32] Prevents Ne5. Black must now prevent f5.} Qd6 {[%emt 0:02:05]} 26. f5 {[%emt 0:02:47] Hoping for hxg6.} Ne5 {[%emt 0:00:57]} 27. hxg6 {[%emt 0:00:05]} fxg6 {[%emt 0:00:03]} 28. Bxe5 {[%emt 0:01:31]} Qxe5 {[%emt 0:00:47]} 29. Qb6 {[%emt 0:00:37]} Qc7 {[%emt 0:02:05]} 30. Qxb4 {[%emt 0:04:33] [#] Dancing on a razor blade.} (30. Qxc7 $2 Rxc7 31. fxg6 Rf3 32. gxh7+ Kxh7 33. Rg7+ Rxg7 34. hxg7+ Kg8 35. Rh8+ Kxg7 $17) 30... Rxf5 {[%emt 0:00:04]} 31. Rc1 {[%emt 0:00:30]} Rc5 {[%emt 0:00:03]} 32. Rxc5 {[%emt 0:01:25]} Qxc5 {[%emt 0:00:04]} 33. Qb3+ {[%emt 0:00:10]} (33. Qxb7 $2 {is a self mate.} Qc2+ 34. Ka1 Qc1+ $3 {[%mdl 512]} 35. Rxc1 Rxc1#) 33... Kh8 $1 {[%emt 0:00:10][%cal Oa6a5]} 34. a3 {[%emt 0:00:00]} (34. Qxb7 $2 {gets mated.} Qc2+ 35. Ka1 Qc1+ $3 {[%mdl 512]} 36. Rxc1 Rxc1#) 34... Qe7 {[%emt 0:07:18][%cal Ob7e4] Threatens to win with ...Bxe4!} 35. Rf1 {[%emt 0:00:22] Rf7 is the strong threat.} Ba8 {[%emt 0:00:37]} 36. Rf7 {[%emt 0:00:32]} Qe5 {[%emt 0:00:01][%mdl 8192] [#]} (36... Qd6 $11) 37. Qb4 $2 {[%emt 0:01:24]} (37. Qc4 $3 $18 {[%mdl 512]} Rb8 38. b4) 37... Kg8 $14 {[%emt 0:00:21]} 38. Rg7+ {[%emt 0:00:02]} Kh8 {[%emt 0:00:00]} 39. Rf7 {[%emt 0:00:09]} (39. Qb6 $14 Bxe4 40. Rd7 (40. dxe4 Qxe4+ 41. Ka2 Rg8 $14)) 39... Rg8 $2 {[%emt 0:00:15][%mdl 8192] [#]} (39... Kg8 $11 {and Black has nothing to worry.} 40. Qb3 Kh8) 40. Rf8 $2 {[%emt 0:02:21]} (40. Qc4 $1 $18 {White threatens Rc7 and mate.} Rb8 41. b4) 40... a5 $11 {[%emt 0:00:39]} 41. Rxg8+ {[%emt 0:00:12]} Kxg8 {[%emt 0:00:01]} 42. Qc4+ {[%emt 0:00:01]} Kf8 {[%emt 0:00:02]} 43. Qc8+ {[%emt 0:00:03]} Kf7 $2 {[%emt 0:00:02]} (43... Qe8 $11 {and Black stays safe.} 44. Qc3 Ke7) 44. Qxa8 $18 {[%emt 0:00:03][%mdl 4096] Endgame KQ-KQ} g5 {[%emt 0:00:02]} 45. Kc2 $2 {[%emt 0:00:57]} (45. Qc6 $18) 45... g4 {[%emt 0:00:40]} (45... Qc5+ $1 $11 46. Kb1 Qg1+ 47. Ka2 Qb6) 46. Qb7+ {[%emt 0:00:28]} (46. Qc8 $14 Qh2+ 47. Kb3) 46... Kg6 $11 {[%emt 0:00:03] aiming for ...g3. The position is equal.} 47. Qg7+ {[%emt 0:00:01]} Qxg7 {[%emt 0:00:05]} 48. hxg7 {[%emt 0:00:02]} Kxg7 {[%emt 0:00:01] And now ...g3 would win. KP-KP} 49. Kd2 {[%emt 0:00:02] Intending b4 and mate.} a4 $1 {[%emt 0:00:10]} 50. Ke3 {[%emt 0:00:04]} Kf6 {[%emt 0:00:00]} 51. Kf4 {[%emt 0:00:01]} h5 {[%emt 0:00:00]} 52. d4 {[%emt 0:00:03]} Ke6 {[%emt 0:00:01]} 53. Kg3 {[%emt 0:00:22]} Kf6 {[%emt 0:00:03]} 54. Kf4 {[%emt 0:00:19]} Ke6 {[%emt 0:00:11]} 55. Kg3 {[%emt 0:00:01]} Ke7 {[%emt 0:00:02]} 56. Kf4 {[%emt 0:00:13]} Kd6 {[%emt 0:01:05]} 57. d5 {[%emt 0:00:11]} Kc5 {[%emt 0:00:09]} 58. Kg3 {[%emt 0:00:05]} Kd6 {[%emt 0:00:05]} 59. Kf4 {[%emt 0:00:01]} Kc5 {[%emt 0:00:02]} 60. Kg3 {[%emt 0:00:11]} Kd6 {[%emt 0:00:01] Weighted Error Value: White=0.42/Black=0.24 (precise)} 1/2-1/2

[Event "Slovakia Open 2022"]
[Site "Bratislava"]
[Date "2022.09.30"]
[Round "2.4"]
[White "Mikulas, Dusan"]
[Black "Heberla, Bartlomiej"]
[Result "0-1"]
[ECO "B45"]
[WhiteElo "2047"]
[BlackElo "2568"]
[Annotator "TA"]
[PlyCount "96"]
[EventDate "2022.09.30"]
[EventCountry "SVK"]
[SourceTitle "playchess.com"]
[Source "ChessBase"]
[SourceQuality "1"]
[TimeControl "2700+10"]

{[%evp 14,96,12,7,44,9,18,18,32,32,27,39,40,46,39,37,45,22,37,16,79,35,51,45,38,35,42,21,52,6,7,0,0,0,31,0,0,0,17,0,0,0,0,0,50,0,0,0,0,0,0,0,0,0,0,0,0,-235,-234,-252,-245,-239,-175,-666,-645,-722,-695,-679,-510,-679,-647,-675,-456,-651,-630,-608,-553,-839,-838,-799,-730,-29980,-29981,-29982,-29983]} 1. e4 {[%emt 0:00:05]} c5 {[%emt 0:00:14]} 2. Nf3 {[%emt 0:00:02]} e6 {[%emt 0:00:09]} 3. d4 {[%emt 0:00:03]} cxd4 {[%emt 0:00:02]} 4. Nxd4 {[%emt 0:00:01]} Nf6 {[%emt 0:00:02]} 5. Bd3 {[%emt 0:01:08]} Nc6 {[%emt 0:00:02]} 6. Nxc6 {[%emt 0:00:50]} bxc6 {[%emt 0:00:02]} 7. O-O {[%emt 0:00:02]} e5 {[%emt 0:00:03]} 8. Nc3 {[%emt 0:00:47]} Bc5 {[%emt 0:00:19] B45: Sicilian Four Knights.} 9. Bg5 {[%emt 0:00:30][%cal Bc1g5,Bg5h4,Bh4g3][%mdl 32]} h6 {[%emt 0:00:04]} 10. Bh4 {[%emt 0:01:16]} g5 {[%emt 0:00:02] The position is equal.} 11. Bg3 {[%emt 0:00:10]} d6 {[%emt 0:00:02]} 12. Na4 {[%emt 0:01:03] [#]} Bb6 $146 {[%emt 0:00:04]} ({Predecessor:} 12... Bb4 13. c3 Ba5 14. b4 Bc7 15. c4 h5 16. h4 Ng4 17. hxg5 h4 18. Bh2 Qxg5 {0-1 (37) Jagodzinski,O (1519)-Piotrowski,P (2067) Poznan 2021}) 13. Nxb6 {[%emt 0:00:10]} axb6 {[%emt 0:00:02]} 14. f3 {[%emt 0:01:36]} Nh5 {[%emt 0:00:04]} 15. Bc4 {[%emt 0:00:58]} Qf6 {[%emt 0:03:44]} 16. Qd2 {[%emt 0:00:38]} Ke7 {[%emt 0:03:44]} (16... O-O $11) 17. Rad1 {[%emt 0:00:55]} Ba6 {[%emt 0:03:30]} 18. Bxa6 {[%emt 0:00:35]} Rxa6 {[%emt 0:00:02]} 19. a3 {[%emt 0:01:01]} b5 {[%emt 0:00:22]} 20. Qd3 {[%emt 0:00:24]} Ra4 {[%emt 0:01:10]} 21. Rd2 {[%emt 0:01:32]} (21. Qc3 $14 {should be considered.}) 21... Rd4 $11 {[%emt 0:03:11]} 22. Qe3 {[%emt 0:01:05]} Rxd2 {[%emt 0:00:02]} 23. Qxd2 {[%emt 0:00:01]} Ra8 {[%emt 0:00:02]} 24. c4 {[%emt 0:02:53]} Qe6 {[%emt 0:07:17]} 25. cxb5 {[%emt 0:00:20]} cxb5 {[%emt 0:00:01]} 26. Rc1 {[%emt 0:02:06]} Rc8 {[%emt 0:01:34] Against Rc7+} 27. Rd1 {[%emt 0:02:07]} Rc6 {[%emt 0:01:37]} 28. Bf2 {[%emt 0:01:32]} Qb3 {[%emt 0:02:30] [#]} (28... Qc4 $11) 29. Rc1 {[%emt 0:04:36]} (29. Bc5 $1 $14 Ke8 30. Bxd6) 29... Rxc1+ {[%emt 0:00:59]} 30. Qxc1 {[%emt 0:00:02][%mdl 4096] Endgame KQB-KQN} Nf4 {[%emt 0:01:15]} 31. Qc7+ {[%emt 0:04:47]} Ke6 {[%emt 0:00:16]} 32. Qc8+ {[%emt 0:00:37]} Kf6 {[%emt 0:00:05]} (32... Ke7 $5 33. Qc7+ $8 Ke6 34. Qc8+ Kf6 35. Qd8+ Kg7 36. Qxd6 (36. h4 {gets mated.} Qd1+) 36... Qxb2 $11) 33. Qd8+ $1 {[%emt 0:03:36]} Kg7 {[%emt 0:00:06]} 34. Qxd6 {[%emt 0:00:29]} (34. h4 {is a self mate.} Qd1+) 34... Qxb2 {[%emt 0:04:36]} 35. h4 $2 {[%emt 0:01:13]} (35. h3 $1 $11 {and White has nothing to worry.}) 35... gxh4 $19 {[%emt 0:00:24] Threatens to win with ...h3.} 36. Qd7 {[%emt 0:02:25] Against h3} h5 {[%emt 0:06:47] Prevents Qg4+. ( -> ...Qc1+)} ({Worse is} 36... Qxa3 37. Qxb5 Qc1+ 38. Kh2 $15) 37. Qf5 {[%emt 0:00:58]} h3 {[%emt 0:01:27]} 38. Qg5+ {[%emt 0:00:23] [#]} (38. gxh3 Qa1+ 39. Kh2) 38... Ng6 $1 {[%emt 0:00:02]} 39. gxh3 {[%emt 0:00:48]} Qxa3 {[%emt 0:00:20]} 40. Be3 {[%emt 0:01:51]} Qa1+ {[%emt 0:00:02]} 41. Kg2 {[%emt 0:00:11]} Qb2+ {[%emt 0:00:02]} 42. Kg1 {[%emt 0:00:21]} Qb1+ {[%emt 0:00:02]} 43. Kg2 {[%emt 0:00:01]} (43. Bc1 $142 b4 44. Qh6+ Kg8 45. Kf2) 43... Qc2+ {[%emt 0:00:01]} 44. Kg1 {[%emt 0:01:14]} Qd1+ {[%emt 0:00:02]} 45. Kg2 {[%emt 0:00:04]} Qe2+ {[%emt 0:00:04]} 46. Kg1 {[%emt 0:02:23]} Qxf3 {[%emt 0:00:12]} 47. Bc5 {[%emt 0:00:56]} Qd1+ {[%emt 0:00:07]} 48. Kg2 {[%emt 0:00:07]} Qc2+ {[%emt 0:00:03] Weighted Error Value: White=0.66/Black=0.24 (precise)} 0-1

[Event "Slovakia Open 2022"]
[Site "Bratislava"]
[Date "2022.09.30"]
[Round "2.5"]
[White "Kraus, Tomas"]
[Black "Vadila, Ondrej"]
[Result "1-0"]
[ECO "B22"]
[WhiteElo "2479"]
[BlackElo "2178"]
[Annotator "TA"]
[PlyCount "113"]
[EventDate "2022.09.30"]
[EventCountry "SVK"]
[SourceTitle "playchess.com"]
[Source "ChessBase"]
[SourceQuality "1"]
[TimeControl "2700+10"]

{[%evp 9,113,15,18,9,19,12,6,10,18,16,27,27,18,-14,22,22,37,39,42,39,43,45,58,58,51,29,35,30,31,29,39,27,71,76,79,58,167,165,150,69,57,55,69,2,10,10,85,90,87,86,82,82,82,80,83,50,54,60,62,33,29,24,23,0,30,30,30,32,33,24,28,22,64,54,64,32,30,36,38,38,39,39,116,116,108,111,122,115,1726,1514,1662,1592,1216,1615,1915,1703,2011,2008,12839,12839,12840,12840,12843,12843,12844,12844]} 1. e4 {[%emt 0:00:03]} c5 {[%emt 0:00:03]} 2. c3 {[%emt 0:00:01]} Nf6 {[%emt 0:00:10]} 3. e5 {[%emt 0:00:11]} Nd5 {[%emt 0:00:03]} 4. Nf3 {[%emt 0:00:01]} d6 {[%emt 0:00:06]} 5. exd6 {[%emt 0:00:17]} Qxd6 {[%emt 0:00:04]} 6. d4 $1 {[%emt 0:00:13] B22: Sicilian: 2 c3.} Bg4 {[%emt 0:04:29] [#]} 7. dxc5 $146 {[%emt 0:06:53]} ({Predecessor:} 7. Be2 Nc6 8. O-O e6 9. Na3 a6 10. Nc4 Qc7 11. Ne3 Nxe3 12. Bxe3 cxd4 13. Nxd4 Bxe2 14. Qxe2 {0-1 (38) Kumpulainen,J (1924)-Pasanen,T (2016) Helsinki 2011}) 7... Qxc5 {[%emt 0:00:27]} 8. Be2 {[%emt 0:01:12] The position is equal.} Nc6 {[%emt 0:02:01]} 9. h3 {[%emt 0:07:43]} Bf5 {[%emt 0:03:53]} 10. O-O {[%emt 0:04:44]} e6 {[%emt 0:05:37]} 11. Qa4 {[%emt 0:03:31]} Nb6 {[%emt 0:01:21]} 12. Qb3 {[%emt 0:02:42]} Be7 {[%emt 0:01:40]} 13. Be3 {[%emt 0:01:27]} Qa5 {[%emt 0:00:55]} 14. Nbd2 {[%emt 0:01:05]} O-O {[%emt 0:02:19]} 15. a4 {[%emt 0:01:37][%cal Ba2a4,Ba4a5][%mdl 32]} Qd5 {[%emt 0:02:48]} 16. Qb5 {[%emt 0:00:49]} Bd8 {[%emt 0:05:13]} 17. a5 {[%emt 0:01:46]} a6 $1 {[%emt 0:00:18]} 18. Qc5 $36 {[%emt 0:01:24][%mdl 2048] White has some pressure.} Nd7 {[%emt 0:00:28][%csl LRa5,LRc5]} 19. Qxd5 {[%emt 0:00:19]} exd5 {[%emt 0:00:02]} 20. Nb3 {[%emt 0:00:11]} Nde5 {[%emt 0:00:11]} 21. Nxe5 {[%emt 0:02:48]} Nxe5 {[%emt 0:00:04]} 22. Nc5 {[%emt 0:01:14]} Rb8 {[%emt 0:02:25]} ({Black should try} 22... Nc4 $14) 23. Rfd1 $18 {[%emt 0:00:29]} Be6 {[%emt 0:01:07]} 24. Nxe6 {[%emt 0:01:35] White has more active pieces. The black rooks are badly placed.} (24. Bf4 $16 Bc7 25. Re1) 24... fxe6 $14 {[%emt 0:00:03]} 25. Bc5 {[%emt 0:00:10]} Rf5 {[%emt 0:01:18]} 26. f4 {[%emt 0:03:35]} (26. Re1 $14) 26... Rc8 {[%emt 0:02:32]} 27. Bd4 {[%emt 0:01:05] This bishop pair is nice.} ({Of course not} 27. fxe5 Rxc5 28. Bg4 Rxe5 $15) 27... Nc6 {[%emt 0:00:09]} (27... Rxf4 $11 {remains equal.} 28. Bxe5 Re4) 28. Bg4 $16 {[%emt 0:00:20]} Nxd4 {[%emt 0:00:46]} 29. Rxd4 {[%emt 0:00:01]} Rf6 {[%emt 0:03:46]} 30. Rxd5 $1 {[%emt 0:00:01]} exd5 {[%emt 0:00:46]} 31. Bxc8 {[%emt 0:00:01][%mdl 4096] Endgame KRB-KRB} b6 {[%emt 0:00:05]} 32. Re1 {[%emt 0:00:56] [#] Hoping for Re8+.} Kf7 {[%emt 0:00:34] Prevents Re8.} 33. f5 {[%emt 0:00:47]} Rd6 {[%emt 0:01:01]} 34. Be6+ {[%emt 0:00:58]} Kf6 {[%emt 0:00:10]} 35. Rd1 {[%emt 0:00:15]} Ke5 {[%emt 0:00:51]} 36. Re1+ {[%emt 0:00:11]} Kf6 {[%emt 0:00:06]} 37. axb6 {[%emt 0:00:12]} Bxb6+ {[%emt 0:00:01]} 38. Kf1 {[%emt 0:00:10][%cal Oe6d5]} d4 {[%emt 0:00:23]} 39. Rd1 {[%emt 0:00:03]} Ke5 {[%emt 0:00:40]} 40. Ke2 {[%emt 0:00:32]} Ke4 {[%emt 0:01:43]} 41. Rd3 {[%emt 0:00:07]} Ke5 {[%emt 0:00:33]} 42. c4 {[%emt 0:00:16][%cal Bc3c4,Bc4c5][%mdl 32]} Bc5 {[%emt 0:00:23]} 43. Rb3 {[%emt 0:00:09]} Rb6 {[%emt 0:00:07]} 44. Rxb6 {[%emt 0:00:03]} Bxb6 $14 {[%emt 0:00:01] KB-KB} 45. b4 {[%emt 0:00:02][%cal Bb2b4,Bb4b5,Bb5b6][%mdl 32]} Bc7 {[%emt 0:00:37]} (45... Ke4 $14) 46. c5 $16 {[%emt 0:00:10] Bc4 is the strong threat.} Ke4 {[%emt 0:00:10]} 47. Bc4 {[%emt 0:00:18] [#] Prevents d3+. Threatens to win with Bd3+.} a5 {[%emt 0:00:19]} 48. b5 {[%emt 0:00:01]} Ke5 $2 {[%emt 0:00:10][%mdl 8192] This move loses the game for Black.} (48... Bg3 $16) 49. b6 {[%emt 0:00:14] White is clearly winning.} Bd8 {[%emt 0:00:05]} 50. Kd3 {[%emt 0:00:15]} a4 {[%emt 0:00:04]} 51. g4 {[%emt 0:00:09]} a3 {[%emt 0:00:07]} 52. Ba2 {[%emt 0:00:15]} h6 {[%emt 0:00:10]} 53. Bb3 {[%emt 0:00:06]} h5 {[%emt 0:00:24]} 54. gxh5 {[%emt 0:00:13]} Kxf5 {[%emt 0:00:06]} 55. Kxd4 {[%emt 0:00:07]} Kg5 {[%emt 0:00:04]} 56. Kc4 {[%emt 0:00:10]} Kxh5 {[%emt 0:00:08]} 57. Kb5 {[%emt 0:00:10] Weighted Error Value: White=0.10 (very precise) /Black=0.13 (very precise)} 1-0

[Event "Slovakia Open 2022"]
[Site "Bratislava"]
[Date "2022.09.30"]
[Round "2.6"]
[White "Stevik, Patrik"]
[Black "Klabis, Rokas"]
[Result "0-1"]
[ECO "E05"]
[WhiteElo "2148"]
[BlackElo "2396"]
[Annotator "TA"]
[PlyCount "92"]
[EventDate "2022.09.30"]
[EventCountry "SVK"]
[SourceTitle "playchess.com"]
[Source "ChessBase"]
[SourceQuality "1"]
[TimeControl "2700+10"]

{[%evp 14,92,-17,-60,-74,-60,-22,-129,-135,-126,-128,-132,-108,-116,-110,-100,-113,-93,-108,-91,-114,-84,-21,-3,-12,-88,-82,-225,-204,-253,-172,-306,-306,-290,-295,-295,-287,-295,-288,-389,-388,-387,-380,-357,-362,-384,-362,-840,-556,-557,-557,-520,-480,-2303,-1618,-29979,-29980,-29965,-1502,-1465,-1541,-1510,-1455,-1320,-1244,-29964,-1294,-1196,-1017,-5426,-5289,-5285,-3433,-29973,-29974,-29973,-29974,-29974,-29974,-29979,-29980]} 1. Nf3 {[%emt 0:00:18]} Nf6 {[%emt 0:00:15]} 2. g3 {[%emt 0:00:07]} d5 {[%emt 0:00:10]} 3. Bg2 {[%emt 0:00:23]} e6 {[%emt 0:00:02]} 4. d4 {[%emt 0:00:07]} Be7 {[%emt 0:00:03]} 5. O-O {[%emt 0:00:07]} O-O {[%emt 0:00:43]} 6. c4 {[%emt 0:00:09]} dxc4 {[%emt 0:00:28]} 7. Nbd2 {[%emt 0:00:44]} b5 {[%emt 0:02:22]} 8. a4 {[%emt 0:00:25]} c6 {[%emt 0:00:06] E05: Open Catalan: 5 Nf3 Be7.} 9. Qc2 {[%emt 0:03:18] The main line 9.Qc2 scores better than 9.Ne5.} Nd5 {[%emt 0:03:34] is the legacy move (9...Bb7).} 10. b3 {[%emt 0:04:13]} (10. Ne4 $1 $11 {was the only way to keep the balance.}) 10... c3 $17 {[%emt 0:03:30] Black is better.} 11. Ne4 {[%emt 0:00:08]} b4 {[%emt 0:00:02]} 12. Neg5 {[%emt 0:00:40][%csl Gg5][%cal Rc2h7] [#]} Nf6 $146 {[%emt 0:03:38]} ({Predecessor:} 12... g6 13. e4 Nc7 14. e5 Nd7 15. Qe4 h6 16. Qh4 hxg5 17. Nxg5 Bxg5 18. Bxg5 {0-1 (33) Ivlev,A (2315)-Sarana,A (2640) Bryansk 2021}) 13. e4 {[%emt 0:03:27] And now e5 would win.} h6 {[%emt 0:05:01]} 14. e5 {[%emt 0:03:14]} hxg5 {[%emt 0:00:22]} 15. Nxg5 {[%emt 0:00:07]} g6 {[%emt 0:03:33] Strongly threatening ...Nd5.} 16. exf6 {[%emt 0:00:17]} Bxf6 {[%emt 0:00:02]} 17. Ne4 {[%emt 0:00:44]} Bg7 {[%emt 0:05:38]} (17... Qxd4 $2 18. Rd1 $18) ({Black should try} 17... Bxd4 $17 {aiming for ...Kg7.} 18. Bg5 f6) 18. Bg5 $11 {[%emt 0:02:13]} Qa5 $36 {[%emt 0:01:38][%mdl 2048] Black is more active.} 19. Be7 {[%emt 0:07:34] [#]} (19. Nf6+ Kh8 20. Qc1 Nd7 $15) (19. Rfe1 $11 {keeps the balance.}) 19... Re8 $1 $17 {[%emt 0:01:00]} 20. Bc5 {[%emt 0:02:24] White does not recover from this.} (20. Bg5 $17 {keeps fighting.}) 20... Ba6 $19 {[%emt 0:02:55]} 21. Rfd1 {[%emt 0:00:16]} Nd7 {[%emt 0:04:23]} 22. Nd6 {[%emt 0:00:36]} (22. h4 {might work better.}) 22... Nxc5 {[%emt 0:00:52]} 23. dxc5 {[%emt 0:01:49]} Red8 {[%emt 0:03:48]} (23... Qxc5 24. Nxe8 Rxe8 25. Rd7 $17) 24. Bxc6 {[%emt 0:04:40] [#]} Rab8 {[%emt 0:00:31]} ({Weaker is} 24... Qxc5 25. Bxa8 Rxd6 26. Rxd6 Qxd6 27. Rd1 $17) 25. Bb5 {[%emt 0:01:35]} Bxb5 {[%emt 0:00:10]} 26. Nxb5 {[%emt 0:00:10]} Rxd1+ {[%emt 0:00:10]} 27. Rxd1 {[%emt 0:00:10]} a6 {[%emt 0:00:10]} 28. Nd6 {[%emt 0:00:10][%cal Od6f7]} Qxc5 {[%emt 0:00:13]} 29. Nc4 {[%emt 0:02:31]} Bd4 {[%emt 0:00:13]} 30. Rd3 $2 {[%emt 0:00:52] [#]} (30. Rc1) 30... Qxc4 $3 {[%emt 0:01:59][%mdl 512]} 31. bxc4 {[%emt 0:00:24]} b3 {[%emt 0:00:01]} 32. Qd1 {[%emt 0:02:44]} b2 {[%emt 0:01:24]} 33. Rxd4 {[%emt 0:01:16]} (33. Qb1 $142 c2 34. Qxc2 b1=Q+ 35. Qxb1 Rxb1+ 36. Kg2) 33... b1=Q {[%emt 0:00:03][%mdl 4096] Endgame KQR-KQR} 34. Rd8+ {[%emt 0:00:38]} Kh7 {[%emt 0:00:10]} 35. Kg2 {[%emt 0:00:09]} c2 {[%emt 0:00:12]} (35... Qe4+ $142 36. f3 Rxd8 37. Qxd8 Qe2+ 38. Kg1 Qe3+ 39. Kg2 c2 40. Qf6 Kg8 41. Qf4 Qxf4 42. gxf4 c1=Q 43. Kf2 Qxc4 44. h4 Qxa4 45. Ke3 a5 46. Ke2 Qxf4 47. Kd3 a4 48. Kc2 a3 49. Kb3 Qxf3+ 50. Kc2 a2 51. Kb2 Qg2+ 52. Kb3 a1=Q 53. Kc4 Qd5+ 54. Kb4 Qaa5#) 36. Qf3 {[%emt 0:00:46]} Qb7 {[%emt 0:00:01]} ({Inferior is} 36... c1=Q 37. Qxf7+ Kh6 38. Qf8+ Kh5 39. Qf3+ Kh6 40. Qf8+ Kh5 41. Qf3+ Kh6 42. Qf8+ $11) 37. Rxb8 {[%emt 0:00:51]} Qxf3+ {[%emt 0:00:02]} ({Worse is} 37... Qxb8 38. Qxf7+ Kh6 39. Qe7 $15) 38. Kxf3 {[%emt 0:00:01]} c1=Q {[%emt 0:00:03] KQ-KR} 39. Rb7 {[%emt 0:00:14]} Kg7 {[%emt 0:00:02]} (39... Qh1+ $142 40. Ke3 Qxb7 41. a5 Qb2 42. g4 Qc3+ 43. Kf4 Qxa5 44. Kf3 Qc3+ 45. Kg2 a5 46. c5 a4 47. h3 a3 48. c6 a2 49. h4 a1=Q 50. h5 Qd1 51. Kh2 Qxg4 52. hxg6+ Kxg6 53. Kh1 Qh8#) 40. Rc7 {[%emt 0:00:20]} Qa3+ {[%emt 0:00:02]} 41. Ke4 {[%emt 0:00:03]} Qxa4 {[%emt 0:00:02]} 42. Kd4 {[%emt 0:00:05]} Qb4 {[%emt 0:00:11] ( -> ...Qd6+)} 43. Rc5 {[%emt 0:00:10]} Qd2+ {[%emt 0:00:06] Black mates.} 44. Ke5 {[%emt 0:00:01]} Qxf2 {[%emt 0:00:04]} 45. Kd6 {[%emt 0:00:01]} a5 {[%emt 0:00:06]} 46. Rb5 {[%emt 0:00:17]} Qd4+ {[%emt 0:00:06] Weighted Error Value: White=1.07/Black=0.50} 0-1